bitfinex/quotes_BTCUSD_20250812
["timestamp","ask_amount","ask_price","bid_price","bid_amount"]
[1755024346833,0.18974904,119560.0,119550.0,0.30284365]
[1755024347044,0.18974904,119560.0,119550.0,0.86667596]
[1755024347898,0.18974904,119560.0,119550.0,0.69938195]
[1755024348439,0.18974904,119560.0,119550.0,0.13355964]
[1755024349060,0.18974904,119560.0,119550.0,0.69739195]
[1755024349673,0.18974904,119560.0,119550.0,0.69938195]
[1755024349951,0.01943902,119560.0,119550.0,0.86667596]
[1755024350162,0.18472904,119560.0,119550.0,0.86667596]
[1755024351195,0.18472904,119560.0,119550.0,0.30284365]
[1755024351369,0.18472904,119560.0,119550.0,0.86667596]
[1755024351582,0.18472904,119560.0,119550.0,0.30284365]
[1755024351805,0.18472904,119560.0,119550.0,0.86667596]
[1755024353882,0.18472904,119560.0,119550.0,0.30284365]
[1755024354090,0.18472904,119560.0,119550.0,0.86667596]
[1755024354289,0.18775904,119560.0,119550.0,0.86667596]
[1755024354726,0.18974904,119560.0,119550.0,0.86667596]
[1755024354937,0.18974904,119560.0,119550.0,0.30284365]
[1755024355175,0.18974904,119560.0,119550.0,0.86667596]
[1755024355526,0.18974904,119560.0,119550.0,0.88341596]
[1755024355720,0.18974904,119560.0,119550.0,0.69938195]
[1755024357075,0.18974904,119560.0,119550.0,0.69739195]
[1755024357289,0.18974904,119560.0,119550.0,0.13355964]
[1755024358792,0.18974904,119560.0,119550.0,0.13255964]
[1755024359303,0.19074904,119560.0,119550.0,0.13255964]
[1755024359520,0.19074904,119560.0,119550.0,0.13155964]
[1755024360303,0.19074904,119560.0,119550.0,0.86268596]
[1755024360678,0.19074904,119560.0,119550.0,0.30086365]
[1755024360933,0.19074904,119560.0,119550.0,0.86469596]
[1755024361683,0.19074904,119560.0,119550.0,0.30086365]
[1755024361898,0.19074904,119560.0,119550.0,0.86469596]
[1755024362872,0.19074904,119560.0,119550.0,0.30086365]
[1755024363088,0.19074904,119560.0,119550.0,0.86469596]
[1755024363523,0.25074904,119560.0,119550.0,0.86469596]
[1755024366906,0.25074904,119560.0,119550.0,0.30086365]
[1755024367106,0.25074904,119560.0,119550.0,0.86469596]
[1755024367331,0.25074904,119560.0,119550.0,0.13356964]
[1755024367534,0.25074904,119560.0,119550.0,0.69740195]
[1755024368489,0.25074904,119560.0,119550.0,0.86268596]
[1755024368753,0.25074904,119560.0,119550.0,0.86469596]
[1755024369152,0.25074904,119560.0,119550.0,0.69740195]
[1755024369482,0.25074904,119560.0,119550.0,0.86469596]
[1755024369695,0.061,119560.0,119550.0,0.95035921]
[1755024369917,0.061,119560.0,119550.0,1.86419152]
[1755024370153,0.061,119560.0,119550.0,1.88929252]
[1755024370594,0.061,119560.0,119550.0,1.32546021]
[1755024370813,0.061,119560.0,119550.0,1.60848724]
[1755024371700,0.06,119560.0,119550.0,1.60848724]
[1755024371907,0.06,119560.0,119550.0,1.60948724]
[1755024372125,0.06,119560.0,119550.0,1.63515599]
[1755024372360,0.06,119560.0,119550.0,1.63399599]
[1755024372786,0.06,119560.0,119550.0,1.35205166]
[1755024374872,0.06,119560.0,119550.0,0.78813665]
[1755024375121,0.06,119560.0,119550.0,1.35205166]
[1755024382888,0.06,119560.0,119550.0,0.78813665]
[1755024383100,0.06,119560.0,119550.0,1.35205166]
[1755024384009,0.06,119560.0,119550.0,1.34911166]
[1755024385576,0.06,119560.0,119550.0,0.78519665]
[1755024385782,0.06,119560.0,119550.0,1.34911166]
[1755024386216,0.06521,119560.0,119550.0,0.7595279]
[1755024386437,0.06521,119560.0,119550.0,1.32143291]
[1755024388696,0.23249002,119560.0,119550.0,1.12143291]
[1755024389298,0.06521,119560.0,119550.0,1.12143291]
[1755024390396,0.23249002,119560.0,119550.0,1.12143291]
[1755024390603,0.23249002,119560.0,119550.0,1.03870966]
[1755024391068,0.23249002,119560.0,119550.0,1.03850966]
[1755024391628,0.23249002,119560.0,119550.0,0.72121565]
[1755024392719,0.24993904,119560.0,119550.0,0.88850966]
[1755024394030,0.24993904,119560.0,119550.0,0.72121565]
[1755024395358,0.24993904,119560.0,119550.0,0.88850966]
[1755024395903,0.24993904,119560.0,119550.0,0.02726064]
[1755024396111,0.81385405,119560.0,119550.0,0.13215964]
[1755024396351,0.24993904,119560.0,119550.0,0.13215964]
[1755024396584,0.24993904,119560.0,119550.0,0.13115964]
[1755024397050,0.83946296,119560.0,119550.0,0.13115964]
[1755024397268,1.00467064,119560.0,119550.0,0.00115964]
[1755024397499,1.02884064,119560.0,119550.0,0.13015964]
[1755024397736,1.03084064,119560.0,119550.0,0.00015964]
[1755024397953,1.03084064,119560.0,119550.0,0.13015964]
[1755024405340,1.03084064,119560.0,119550.0,0.00015964]
[1755024406847,0.41814672,119560.0,119550.0,0.00015964]
[1755024407059,0.33566229,119560.0,119550.0,0.00015964]
[1755024407670,0.36042537,119560.0,119550.0,0.00015964]
[1755024407874,0.33566229,119560.0,119550.0,0.00015964]
[1755024409338,0.8995773,119560.0,119550.0,0.00015964]
[1755024409756,0.98206173,119560.0,119550.0,0.00015964]
[1755024410176,0.41814672,119560.0,119550.0,0.00015964]
[1755024410390,1.00640631,119560.0,119550.0,0.00015964]
[1755024411032,0.41814672,119560.0,119550.0,0.00015964]
[1755024412817,0.44323172,119560.0,119550.0,0.00015964]
[1755024413031,1.00714673,119560.0,119550.0,0.00015964]
[1755024413664,0.41814672,119560.0,119550.0,0.00015964]
[1755024414085,0.98206173,119560.0,119550.0,0.00015964]
[1755024414296,0.41814672,119560.0,119550.0,0.00015964]
[1755024416978,0.98206173,119560.0,119550.0,0.00015964]
[1755024417190,0.41814672,119560.0,119550.0,0.00015964]
[1755024417380,0.98206173,119560.0,119550.0,0.00015964]
[1755024417788,1.11258173,119560.0,119550.0,0.00015964]
[1755024418985,0.98206173,119560.0,119550.0,0.00015964]
[1755024421866,0.41814672,119560.0,119550.0,0.00015964]
[1755024422101,0.98206173,119560.0,119550.0,0.00015964]
[1755024422217,0.41814672,119560.0,119550.0,0.00015964]
[1755024422415,0.98206173,119560.0,119550.0,0.00015964]
[1755024422855,0.41814672,119560.0,119550.0,0.00015964]
[1755024423075,0.98206173,119560.0,119550.0,0.00015964]
[1755024424590,0.41814672,119560.0,119550.0,0.00015964]
[1755024425020,0.98206173,119560.0,119550.0,0.00015964]
[1755024425674,0.41814672,119560.0,119550.0,0.00015964]
[1755024425886,0.98206173,119560.0,119550.0,0.00015964]
[1755024428236,1.11254173,119560.0,119550.0,0.00015964]
[1755024428618,1.39518866,119560.0,119550.0,0.00015964]
[1755024431062,1.81846963,119560.0,119550.0,0.00015964]
[1755024431290,1.84170963,119560.0,119550.0,0.00015964]
[1755024431520,1.86682363,119560.0,119550.0,0.00015964]
[1755024432147,1.86582363,119560.0,119550.0,0.00015964]
[1755024432359,1.86882363,119560.0,119550.0,0.00015964]
[1755024432785,1.7281132,119560.0,119550.0,0.00015964]
[1755024433248,1.7261132,119560.0,119550.0,0.00015964]
[1755024433588,1.7301132,119560.0,119550.0,0.00115964]
[1755024438088,1.7068732,119560.0,119550.0,0.00115964]
[1755024438289,1.7068732,119560.0,119550.0,0.00019964]
[1755024440588,1.7551132,119560.0,119550.0,1e-08]
[1755024440822,1.6496332,119560.0,119550.0,1e-08]
[1755024441049,1.6246332,119560.0,119550.0,1e-08]
[1755024441262,1.7547932,119560.0,119550.0,1e-08]
[1755024441685,1.7767932,119560.0,119550.0,1e-08]
[1755024442123,1.7807932,119560.0,119550.0,1e-08]
[1755024442852,1.7557932,119560.0,119550.0,1e-08]
[1755024443058,1.7807932,119560.0,119550.0,1e-08]
[1755024443269,0.18478503,119520.0,119510.0,0.00141]
[1755024443474,0.18478503,119520.0,119510.0,0.00153266]
[1755024443475,1.00114138,119520.0,119510.0,0.00153266]
[1755024443903,1.00426138,119520.0,119510.0,0.00153266]
[1755024444334,1.5939677,119520.0,119510.0,0.00153266]
[1755024444751,1.02628146,119520.0,119510.0,0.00358266]
[1755024444971,1.02629146,119520.0,119510.0,0.00458266]
[1755024447240,1.02621146,119520.0,119510.0,0.00458266]
[1755024447447,0.89617146,119520.0,119510.0,0.00458266]
[1755024447597,1.02621146,119520.0,119510.0,0.00458266]
[1755024448612,0.30646514,119520.0,119510.0,0.00752266]
[1755024448788,0.87103138,119520.0,119510.0,0.00752266]
[1755024448991,0.30646514,119520.0,119510.0,0.00752266]
[1755024449215,0.87103138,119520.0,119510.0,0.00752266]
[1755024449441,0.87103138,119520.0,119510.0,0.00458266]
[1755024450583,0.22374189,119520.0,119510.0,0.00752266]
[1755024452329,0.18678503,119520.0,119510.0,0.17487267]
[1755024452564,0.18678503,119520.0,119510.0,0.00752266]
[1755024452779,0.18678503,119520.0,119510.0,0.00458266]
[1755024453416,0.75135127,119520.0,119510.0,0.00458266]
[1755024453864,0.18678503,119520.0,119510.0,0.00458266]
[1755024454065,0.26926946,119520.0,119510.0,0.00458266]
[1755024454182,0.8338357,119520.0,119510.0,0.00458266]
[1755024455463,0.75135127,119520.0,119510.0,0.00458266]
[1755024455886,0.18678503,119520.0,119510.0,0.00458266]
[1755024456496,0.18678503,119520.0,119510.0,0.00752266]
[1755024459797,0.75636127,119520.0,119510.0,0.00253266]
[1755024460355,1.40365076,119520.0,119510.0,0.00253266]
[1755024460579,0.92156895,119520.0,119510.0,0.00253266]
[1755024460885,1.05264895,119520.0,119510.0,0.00253266]
[1755024461174,0.48808271,119520.0,119510.0,0.00253266]
[1755024461340,1.05264895,119520.0,119510.0,0.00253266]
[1755024462961,1.05154033,119520.0,119510.0,0.00253266]
[1755024464027,1.07665833,119520.0,119510.0,0.00253266]
[1755024467752,0.51209209,119520.0,119510.0,0.00253266]
[1755024467959,1.07665833,119520.0,119510.0,0.00253266]
[1755024468607,0.38101209,119520.0,119510.0,0.00253266]
[1755024468817,0.38101209,119520.0,119510.0,0.00465266]
[1755024469021,0.94557833,119520.0,119510.0,0.00465266]
[1755024469224,0.38101209,119520.0,119510.0,0.00465266]
[1755024469431,0.25071182,119520.0,119510.0,0.5692189]
[1755024469645,0.16822739,119520.0,119510.0,0.00759266]
[1755024469863,0.16822739,119520.0,119510.0,0.17494267]
[1755024470071,0.18567641,119520.0,119510.0,0.17494267]
[1755024470524,0.002,119520.0,119510.0,0.73950891]
[1755024470739,0.002,119520.0,119510.0,1.02223216]
[1755024471785,0.01744902,119530.0,119520.0,0.16732349]
[1755024472023,0.01744902,119530.0,119520.0,0.86484973]
[1755024472570,0.01744902,119530.0,119520.0,0.86778973]
[1755024472999,0.01744902,119530.0,119520.0,0.86878973]
[1755024473438,0.18477103,119530.0,119520.0,0.86878973]
[1755024474680,0.18577103,119530.0,119520.0,0.30622349]
[1755024474862,0.18577103,119530.0,119520.0,0.87078973]
[1755024475500,0.18577103,119530.0,119520.0,0.30622349]
[1755024476427,0.18577103,119530.0,119520.0,0.87078973]
[1755024477217,0.18577103,119530.0,119520.0,0.30622349]
[1755024477431,0.18577103,119530.0,119520.0,0.87078973]
[1755024477754,0.18577103,119530.0,119520.0,0.30622349]
[1755024477951,0.18577103,119530.0,119520.0,0.30328349]
[1755024478194,0.18577103,119530.0,119520.0,0.13596]
[1755024479802,0.18577103,119530.0,119520.0,0.30329601]
[1755024480407,0.18577103,119530.0,119520.0,0.86786225]
[1755024481716,0.18577103,119530.0,119520.0,0.30329601]
[1755024481928,0.18577103,119530.0,119520.0,0.86786225]
[1755024483081,0.18577103,119530.0,119520.0,0.30329601]
[1755024483308,0.18577103,119530.0,119520.0,0.13596]
[1755024483534,0.18577103,119530.0,119520.0,0.13348]
[1755024483535,0.82317767,119530.0,119520.0,0.13348]
[1755024483956,0.82317767,119530.0,119520.0,0.13356]
[1755024484070,0.25861143,119530.0,119520.0,0.13356]
[1755024484287,0.86660616,119530.0,119520.0,0.13356]
[1755024487090,0.30203992,119530.0,119520.0,0.13356]
[1755024487314,0.86660616,119530.0,119520.0,0.13356]
[1755024489625,0.30203992,119530.0,119520.0,0.13356]
[1755024489745,0.86660616,119530.0,119520.0,0.13356]
[1755024490559,0.86660616,119530.0,119520.0,0.003]
[1755024490785,0.86660616,119530.0,119520.0,0.13336]
[1755024490992,0.86660616,119530.0,119520.0,0.13344]
[1755024492399,0.30203992,119530.0,119520.0,0.13344]
[1755024492638,0.86660616,119530.0,119520.0,0.13344]
[1755024493259,0.94932941,119530.0,119520.0,0.13336]
[1755024494792,0.90590092,119530.0,119520.0,0.13336]
[1755024497374,0.34133468,119530.0,119520.0,0.13336]
[1755024498399,0.33610468,119530.0,119520.0,0.13542]
[1755024498603,0.34133468,119530.0,119520.0,0.13542]
[1755024499575,0.34133468,119530.0,119520.0,0.13336]
[1755024499984,0.90590092,119530.0,119520.0,0.13336]
[1755024500827,0.34133468,119530.0,119520.0,0.13336]
[1755024501031,0.25338143,119530.0,119520.0,0.30275601]
[1755024501348,0.25338143,119530.0,119520.0,0.13542]
[1755024502769,0.25338143,119530.0,119520.0,0.30275601]
[1755024503260,0.25338143,119530.0,119520.0,0.13542]
[1755024503786,0.25861143,119530.0,119520.0,0.13542]
[1755024503994,0.25861143,119530.0,119520.0,0.13466]
[1755024504435,0.82317767,119530.0,119520.0,0.13466]
[1755024506061,0.25861143,119530.0,119520.0,0.13466]
[1755024512475,0.25861143,119530.0,119520.0,0.30199601]
[1755024512878,0.25861143,119530.0,119520.0,0.13466]
[1755024513426,0.25861143,119530.0,119520.0,0.13236]
[1755024514301,0.34109586,119530.0,119520.0,0.13236]
[1755024515122,0.18478503,119520.0,119510.0,0.11137829]
[1755024515343,0.18478503,119520.0,119510.0,0.24354829]
[1755024516663,0.18578503,119520.0,119510.0,0.24754829]
[1755024517136,0.18578503,119520.0,119510.0,0.24954829]
[1755024519396,0.18578503,119520.0,119510.0,0.13817]
[1755024519773,0.18578503,119520.0,119510.0,0.30552001]
[1755024521842,0.01844902,119520.0,119510.0,0.30552001]
[1755024522059,0.02367476,119520.0,119510.0,0.30552001]
[1755024522261,0.19101077,119520.0,119510.0,0.30552001]
[1755024522438,0.18578503,119520.0,119510.0,0.30552001]
[1755024523787,0.01844902,119520.0,119510.0,0.87302625]
[1755024526275,0.001,119520.0,119510.0,0.87302625]
[1755024526476,0.001,119520.0,119510.0,1.3057495]
[1755024526893,0.001,119520.0,119510.0,1.3308595]
[1755024536404,0.001,119520.0,119510.0,0.76629326]
[1755024536607,0.001,119520.0,119510.0,1.3308595]
[1755024536823,0.001,119520.0,119510.0,2.09542574]
[1755024537032,0.001,119520.0,119510.0,1.5308595]
[1755024537837,0.001,119520.0,119510.0,2.09542574]
[1755024540140,0.001,119520.0,119510.0,1.5308595]
[1755024540844,0.001,119520.0,119510.0,2.09542574]
[1755024541495,8.513e-05,119520.0,119510.0,2.09542574]
[1755024541673,8.513e-05,119520.0,119510.0,3.67026974]
[1755024542130,0.0676104,119530.0,119520.0,0.16733601]
[1755024542337,0.0676104,119530.0,119520.0,1.51118174]
[1755024542562,0.0676104,119530.0,119520.0,1.51412174]
[1755024543393,0.0676104,119530.0,119520.0,1.51512174]
[1755024543804,0.0686104,119530.0,119520.0,1.51612174]
[1755024544859,0.0686104,119530.0,119520.0,1.51512174]
[1755024545118,0.0686104,119530.0,119520.0,1.51612174]
[1755024545560,0.0686104,119530.0,119520.0,1.54122574]
[1755024545914,0.0676104,119530.0,119520.0,1.54022574]
[1755024546119,0.0686104,119530.0,119520.0,1.54322574]
[1755024548501,0.0686104,119530.0,119520.0,1.54028574]
[1755024555198,0.0683104,119530.0,119520.0,1.54028574]
[1755024560165,0.0733604,119530.0,119520.0,0.9737295]
[1755024561002,0.24068241,119530.0,119520.0,0.40916326]
[1755024561215,0.24068241,119530.0,119520.0,0.159104]
[1755024561676,0.82269767,119530.0,119520.0,0.029104]
[1755024561895,0.9280521,119530.0,119520.0,0.13396]
[1755024562737,0.36348586,119530.0,119520.0,0.13396]
[1755024562959,0.9280521,119530.0,119520.0,0.13296]
[1755024564051,1.00977535,119530.0,119520.0,0.12996]
[1755024564457,1.01077535,119530.0,119520.0,0.12996]
[1755024564616,0.44620911,119530.0,119520.0,0.12996]
[1755024564826,1.01077535,119530.0,119520.0,0.12996]
[1755024565027,1.00977535,119530.0,119520.0,0.12996]
[1755024565419,1.01077535,119530.0,119520.0,0.13096]
[1755024565619,1.03589035,119530.0,119520.0,0.13096]
[1755024565860,0.47132411,119530.0,119520.0,0.13096]
[1755024566063,1.03589035,119530.0,119520.0,0.13096]
[1755024566485,1.03689035,119530.0,119520.0,0.13096]
[1755024567386,0.47232411,119530.0,119520.0,0.13096]
[1755024567572,1.03689035,119530.0,119520.0,0.13096]
[1755024567768,1.05542063,119530.0,119520.0,0.13096]
[1755024568402,1.05542063,119530.0,119520.0,0.001]
[1755024570955,0.49085439,119530.0,119520.0,0.001]
[1755024571169,1.05542063,119530.0,119520.0,0.001]
[1755024571391,1.05542063,119530.0,119520.0,0.0004]
[1755024571597,1.03689035,119530.0,119520.0,0.0004]
[1755024572221,1.0560721,119530.0,119520.0,0.0004]
[1755024573315,0.49150586,119530.0,119520.0,0.0004]
[1755024573542,1.0560721,119530.0,119520.0,0.0004]
[1755024576018,1.08078388,119530.0,119520.0,0.0004]
[1755024578415,0.51621764,119530.0,119520.0,0.0004]
[1755024578624,1.08078388,119530.0,119520.0,0.0004]
[1755024582334,1.64535012,119530.0,119520.0,0.0004]
[1755024582544,1.08078388,119530.0,119520.0,0.0004]
[1755024583414,1.64535012,119530.0,119520.0,0.0004]
[1755024583834,1.08078388,119530.0,119520.0,0.0004]
[1755024584042,1.64535012,119530.0,119520.0,0.0004]
[1755024584324,1.08078388,119530.0,119520.0,0.0004]
[1755024586870,1.07978388,119530.0,119520.0,0.0004]
[1755024587079,1.08178388,119530.0,119520.0,0.0004]
[1755024587285,0.18481303,119500.0,119490.0,0.13047]
[1755024587494,0.30275384,119500.0,119490.0,0.13246]
[1755024588355,0.30783384,119500.0,119490.0,0.13246]
[1755024588769,0.30883384,119500.0,119490.0,0.13246]
[1755024588953,0.30883384,119500.0,119490.0,0.13346]
[1755024590497,0.94101048,119500.0,119490.0,0.00147]
[1755024591111,0.95810521,119500.0,119490.0,0.00147]
[1755024591438,0.94101048,119500.0,119490.0,0.00147]
[1755024595035,0.37644424,119500.0,119490.0,0.00147]
[1755024595193,0.94101048,119500.0,119490.0,0.00147]
[1755024601975,0.37644424,119500.0,119490.0,0.00147]
[1755024602204,0.94101048,119500.0,119490.0,0.00147]
[1755024606146,0.30883384,119500.0,119490.0,0.00343]
[1755024606573,0.87340008,119500.0,119490.0,0.00343]
[1755024606768,0.30883384,119500.0,119490.0,0.00343]
[1755024607015,0.87340008,119500.0,119490.0,0.00343]
[1755024609382,0.87340008,119500.0,119490.0,0.00147]
[1755024610224,1.00332008,119500.0,119490.0,0.00147]
[1755024611487,1.00232008,119500.0,119490.0,0.00147]
[1755024611900,1.00532008,119500.0,119490.0,0.00247]
[1755024612108,1.00532008,119500.0,119490.0,0.00047]
[1755024612310,1.01132008,119500.0,119490.0,0.00147]
[1755024612521,0.18486907,119460.0,119450.0,0.17481552]
[1755024612725,0.18486907,119460.0,119450.0,0.19337217]
[1755024613724,0.18486907,119460.0,119450.0,0.32329217]
[1755024613924,0.0174978,119460.0,119450.0,0.32329217]
[1755024614128,0.02272354,119460.0,119450.0,0.32329217]
[1755024614336,0.02372354,119460.0,119450.0,0.32529217]
[1755024614778,0.19114359,119460.0,119450.0,0.32529217]
[1755024614965,0.18591785,119460.0,119450.0,0.32529217]
[1755024615619,0.18591785,119460.0,119450.0,0.32235217]
[1755024616064,0.18591785,119460.0,119450.0,0.32335217]
[1755024616267,0.0184978,119460.0,119450.0,0.32335217]
[1755024616470,0.02372354,119460.0,119450.0,0.32335217]
[1755024617308,0.02372354,119460.0,119450.0,0.34010217]
[1755024617730,0.26444997,119460.0,119450.0,0.34010217]
[1755024617940,0.18591785,119460.0,119450.0,0.32335217]
[1755024618371,0.18591785,119460.0,119450.0,0.02155665]
[1755024618583,0.18591785,119460.0,119450.0,0.15147665]
[1755024619008,0.19102785,119460.0,119450.0,0.14951665]
[1755024619459,0.75559409,119460.0,119450.0,0.14951665]
[1755024619689,0.83807852,119460.0,119450.0,0.13292]
[1755024619918,0.83807852,119460.0,119450.0,0.003]
[1755024620144,0.83807852,119460.0,119450.0,0.13292]
[1755024620417,0.27351228,119460.0,119450.0,0.13292]
[1755024620650,0.92080177,119460.0,119450.0,0.13292]
[1755024620832,0.92080177,119460.0,119450.0,0.003]
[1755024621089,0.92080177,119460.0,119450.0,0.13292]
[1755024621722,0.35623553,119460.0,119450.0,0.003]
[1755024621934,0.92080177,119460.0,119450.0,0.003]
[1755024624520,0.38126816,119460.0,119450.0,0.003]
[1755024624744,0.9458344,119460.0,119450.0,0.003]
[1755024625160,0.38126816,119460.0,119450.0,0.003]
[1755024625374,0.9458344,119460.0,119450.0,0.003]
[1755024629097,0.9448344,119460.0,119450.0,0.001]
[1755024629430,0.18488309,119450.0,119440.0,0.12992]
[1755024629560,0.35510077,119450.0,119440.0,0.12992]
[1755024630213,0.18489711,119440.0,119430.0,0.0004]
[1755024630361,0.8371966,119440.0,119430.0,0.0004]
[1755024630562,0.27263036,119440.0,119430.0,0.0004]
[1755024630866,0.8371966,119440.0,119430.0,0.0004]
[1755024631090,0.91968103,119440.0,119430.0,0.0004]
[1755024631473,0.35511479,119440.0,119430.0,0.0004]
[1755024631672,0.91968103,119440.0,119430.0,0.0004]
[1755024632364,0.91968103,119440.0,119430.0,0.0014]
[1755024632741,0.35511479,119440.0,119430.0,0.0014]
[1755024632942,0.91968103,119440.0,119430.0,0.0014]
[1755024633320,0.35611479,119440.0,119430.0,0.0034]
[1755024633525,0.92068103,119440.0,119430.0,0.0034]
[1755024633767,0.91968103,119440.0,119430.0,0.0004]
[1755024633969,0.92068103,119440.0,119430.0,0.0014]
[1755024634175,0.35611479,119440.0,119430.0,0.0014]
[1755024634369,0.92068103,119440.0,119430.0,0.0014]
[1755024636976,1.05060103,119440.0,119430.0,0.0014]
[1755024638706,1.61516727,119440.0,119430.0,0.0014]
[1755024639535,1.63335627,119440.0,119430.0,0.0014]
[1755024640397,0.50422379,119440.0,119430.0,0.0014]
[1755024640557,1.06879003,119440.0,119430.0,0.0014]
[1755024640761,1.63335627,119440.0,119430.0,0.0014]
[1755024644078,1.06879003,119440.0,119430.0,0.0014]
[1755024644504,0.37430379,119440.0,119430.0,0.0014]
[1755024644651,1.06879003,119440.0,119430.0,0.0014]
[1755024649713,0.50422379,119440.0,119430.0,0.0014]
[1755024650116,1.06879003,119440.0,119430.0,0.0014]
[1755024651802,0.37430379,119440.0,119430.0,0.00351]
[1755024651977,0.48102479,119440.0,119430.0,0.00351]
[1755024652160,1.04559103,119440.0,119430.0,0.00351]
[1755024652512,1.04858103,119440.0,119430.0,0.00351]
[1755024652821,0.48401479,119440.0,119430.0,0.00351]
[1755024652958,1.04559103,119440.0,119430.0,0.00351]
[1755024653159,0.48102479,119440.0,119430.0,0.00351]
[1755024653378,1.04559103,119440.0,119430.0,0.00351]
[1755024653568,1.04858103,119440.0,119430.0,0.00351]
[1755024654887,0.48603479,119440.0,119430.0,0.00351]
[1755024655177,1.05060103,119440.0,119430.0,0.00351]
[1755024656636,0.92068103,119440.0,119430.0,0.00351]
[1755024656847,1.05060103,119440.0,119430.0,0.00351]
[1755024657390,0.92068103,119440.0,119430.0,0.00351]
[1755024657587,1.05060103,119440.0,119430.0,0.00351]
[1755024657790,1.05060103,119440.0,119430.0,0.0014]
[1755024658601,0.48603479,119440.0,119430.0,0.0014]
[1755024658801,1.05060103,119440.0,119430.0,0.0014]
[1755024660565,0.48603479,119440.0,119430.0,0.0014]
[1755024660771,1.05060103,119440.0,119430.0,0.0014]
[1755024661837,1.61516727,119440.0,119430.0,0.0014]
[1755024662466,1.05060103,119440.0,119430.0,0.0014]
[1755024662695,0.48603479,119440.0,119430.0,0.0014]
[1755024662899,1.05060103,119440.0,119430.0,0.00345]
[1755024663313,0.48603479,119440.0,119430.0,0.00345]
[1755024663525,0.92068103,119440.0,119430.0,0.00345]
[1755024664027,1.05060103,119440.0,119430.0,0.00345]
[1755024664187,1.05060103,119440.0,119430.0,0.0014]
[1755024665116,0.48603479,119440.0,119430.0,0.00345]
[1755024665713,1.05060103,119440.0,119430.0,0.00345]
[1755024666727,0.48102479,119440.0,119430.0,0.00639]
[1755024666915,0.48102479,119440.0,119430.0,0.00345]
[1755024667511,1.04559103,119440.0,119430.0,0.00345]
[1755024667931,0.91567103,119440.0,119430.0,0.00345]
[1755024668136,1.04884103,119440.0,119430.0,0.00345]
[1755024668553,1.05091103,119440.0,119430.0,0.00345]
[1755024669442,1.05091103,119440.0,119430.0,0.0014]
[1755024671353,1.07604703,119440.0,119430.0,0.0014]
[1755024673076,1.64061327,119440.0,119430.0,0.0014]
[1755024673569,1.07604703,119440.0,119430.0,0.0014]
[1755024674024,1.64061327,119440.0,119430.0,0.0014]
[1755024678925,0.51148079,119440.0,119430.0,0.0014]
[1755024679166,1.64061327,119440.0,119430.0,0.0014]
[1755024679599,1.07604703,119440.0,119430.0,0.0014]
[1755024681271,0.51148079,119440.0,119430.0,0.0014]
[1755024681476,1.07604703,119440.0,119430.0,0.0014]
[1755024683383,0.94612703,119440.0,119430.0,0.0014]
[1755024683545,1.07068703,119440.0,119430.0,0.00345]
[1755024684672,0.94080703,119440.0,119430.0,0.00345]
[1755024684783,1.07068703,119440.0,119430.0,0.00345]
[1755024684987,0.94080703,119440.0,119430.0,0.00345]
[1755024685214,1.07068703,119440.0,119430.0,0.00345]
[1755024685611,1.07600703,119440.0,119430.0,0.00345]
[1755024687893,0.37624079,119440.0,119430.0,0.00345]
[1755024688098,0.9630666,119440.0,119430.0,0.00639]
[1755024688488,0.9630666,119440.0,119430.0,0.00345]
[1755024689343,0.9651366,119440.0,119430.0,0.00345]
[1755024689557,0.9682066,119440.0,119430.0,0.00345]
[1755024692682,0.9682066,119440.0,119430.0,0.0014]
[1755024692892,1.05069103,119440.0,119430.0,0.0014]
[1755024693317,0.8383266,119440.0,119430.0,0.0014]
[1755024693525,0.9682066,119440.0,119430.0,0.0014]
[1755024693742,0.9682066,119440.0,119430.0,0.00349]
[1755024694394,0.8383266,119440.0,119430.0,0.00349]
[1755024694602,0.9682066,119440.0,119430.0,0.00349]
[1755024695212,1.05069103,119440.0,119430.0,0.00349]
[1755024695430,0.92081103,119440.0,119430.0,0.00349]
[1755024695645,1.05069103,119440.0,119430.0,0.00349]
[1755024698246,1.05069103,119440.0,119430.0,0.0014]
[1755024698666,0.48612479,119440.0,119430.0,0.0014]
[1755024698878,1.05069103,119440.0,119430.0,0.0014]
[1755024699579,1.61525727,119440.0,119430.0,0.0014]
[1755024699942,1.62657127,119440.0,119430.0,0.0014]
[1755024703159,0.49743879,119440.0,119430.0,0.0014]
[1755024703368,1.06200503,119440.0,119430.0,0.0014]
[1755024704634,0.49743879,119440.0,119430.0,0.0014]
[1755024704848,1.06200503,119440.0,119430.0,0.0014]
[1755024705268,0.8496406,119440.0,119430.0,0.00349]
[1755024705452,0.9743406,119440.0,119430.0,0.00349]
[1755024707221,0.8445006,119440.0,119430.0,0.00349]
[1755024707419,0.9743406,119440.0,119430.0,0.00349]
[1755024708445,0.9795306,119440.0,119430.0,0.00349]
[1755024708852,1.06201503,119440.0,119430.0,0.00349]
[1755024712157,0.16750418,119400.0,119390.0,0.0002]
[1755024712307,1.44862293,119400.0,119390.0,0.0002]
[1755024712518,1.44907568,119400.0,119390.0,0.0002]
[1755024712729,0.88450944,119400.0,119390.0,0.0002]
[1755024712933,0.96699387,119400.0,119390.0,0.0002]
[1755024713136,0.99213987,119400.0,119390.0,0.0002]
[1755024713351,1.07486312,119400.0,119390.0,0.0002]
[1755024713550,1.07486312,119400.0,119390.0,0.00068922]
[1755024714201,1.64342936,119400.0,119390.0,0.00168922]
[1755024714457,1.64342936,119400.0,119390.0,1e-08]
[1755024714680,1.64342936,119400.0,119390.0,0.00300001]
[1755024714905,0.51429688,119400.0,119390.0,0.00300001]
[1755024715159,1.66839668,119400.0,119390.0,0.00300001]
[1755024715362,1.66839668,119400.0,119390.0,1e-08]
[1755024715580,1.67039668,119400.0,119390.0,1e-08]
[1755024716869,1.68414106,119400.0,119390.0,1e-08]
[1755024720024,0.18502338,119350.0,119340.0,0.1467265]
[1755024720228,0.18502338,119350.0,119340.0,0.14888812]
[1755024720613,0.18502338,119350.0,119340.0,0.13490162]
[1755024720822,0.18502338,119350.0,119340.0,0.00510162]
[1755024721059,0.18502338,119350.0,119340.0,0.01865891]
[1755024721471,0.18502338,119350.0,119340.0,0.00510162]
[1755024721987,0.18502338,119350.0,119340.0,0.73725626]
[1755024722441,0.18502338,119350.0,119340.0,0.73825626]
[1755024723518,0.18502338,119350.0,119340.0,0.75199927]
[1755024723955,0.01744902,119350.0,119340.0,0.75199927]
[1755024724165,0.23517631,119380.0,119360.0,0.16756032]
[1755024724387,0.23517631,119380.0,119370.0,0.13486]
[1755024724623,0.0676104,119380.0,119370.0,0.86697252]
[1755024724841,0.08505942,119380.0,119370.0,0.30240628]
[1755024725074,0.23514264,119380.0,119370.0,0.30240628]